bitfinex/quotes_ETHUSD_20250804
["timestamp","ask_amount","ask_price","bid_price","bid_amount"]
[1754314873921,0.00535286,3600.4,3600.3,2.77754631]
[1754314874216,0.00535286,3600.4,3600.3,7.47654631]
[1754314874588,0.00535286,3600.4,3600.3,7.94804631]
[1754314875011,0.00535286,3600.4,3600.3,8.08724631]
[1754314875185,0.00535286,3600.4,3600.3,15.08724631]
[1754314875397,2.1925,3602.0,3600.8,2.77710639]
[1754314875598,0.1392,3601.7,3601.5,2.77660929]
[1754314875797,0.1392,3601.7,3601.6,4.696]
[1754314876028,1.3317,3601.7,3601.6,4.696]
[1754314876591,0.1392,3601.7,3601.6,4.696]
[1754314876790,1.3317,3601.7,3601.6,4.696]
[1754314877042,1.3317,3601.7,3601.6,4.691]
[1754314877364,1.3317,3601.7,3601.6,7.46754375]
[1754314877529,1.0,3602.0,3601.7,2.77644281]
[1754314877734,0.1392,3601.8,3601.2,0.1392]
[1754314878057,2.77660056,3601.6,3601.5,7.0]
[1754314878220,1.5393,3601.6,3601.4,4.686]
[1754314878422,1.5393,3601.5,3600.1,0.4715]
[1754314878641,0.55,3601.3,3599.5,6.672]
[1754314878851,2.7770835,3600.9,3600.1,2.77768481]
[1754314879148,1.1925,3600.8,3599.5,6.672]
[1754314879358,1.1925,3600.8,3600.1,2.77769616]
[1754314879359,3.96969046,3600.8,3600.1,2.77769616]
[1754314879563,1.1925,3600.8,3599.5,6.672]
[1754314880071,2.77732325,3600.6,3599.9,2.77781487]
[1754314880227,1.1925,3600.5,3599.4,0.4715]
[1754314880416,2.77753585,3600.4,3599.7,2.77795116]
[1754314880610,1.1925,3600.3,3598.9,2.7786268]
[1754314880817,2.77762346,3600.2,3599.0,4.679]
[1754314881056,0.03472125,3600.1,3599.5,2.77814237]
[1754314881217,1.1925,3600.1,3599.6,7.45705987]
[1754314881546,1.57402222,3600.0,3599.5,0.002]
[1754314881748,0.02831257,3599.9,3599.5,0.002]
[1754314881972,0.3468,3601.0,3599.5,5.1525]
[1754314882109,1.1925,3599.9,3599.5,0.002]
[1754314882618,1.1925,3599.8,3599.5,0.002]
[1754314882813,3.97013041,3600.2,3599.5,2.78013605]
[1754314883028,1.1925,3600.2,3599.5,0.002]
[1754314883316,1.1925,3600.2,3599.8,2.77786987]
[1754314883847,1.1925,3600.1,3599.6,2.77808645]
[1754314884013,1.1925,3600.0,3599.7,2.77800274]
[1754314884217,1.1925,3599.9,3599.5,2.78014154]
[1754314884417,1.1925,3599.9,3599.5,0.002]
[1754314884621,2.77747036,3600.4,3599.5,0.002]
[1754314884835,1.1925,3599.8,3599.6,2.77808568]
[1754314885166,5.77713345,3600.9,3599.5,0.002]
[1754314885167,2.77756735,3600.3,3599.5,0.002]
[1754314885345,4.681,3600.4,3599.6,2.77808645]
[1754314885520,1.1925,3600.5,3599.5,0.4735]
[1754314885840,5.8715,3600.5,3599.9,2.77784074]
[1754314886049,2.77748001,3600.4,3599.7,2.77800927]
[1754314886266,2.77748001,3600.4,3599.8,2.77792584]
[1754314886449,1.1925,3600.3,3599.8,2.77792584]
[1754314886627,1.1925,3600.2,3599.8,2.77792584]
[1754314887028,1.1925,3600.2,3599.6,2.7780864]
[1754314887029,2.77747436,3600.4,3599.7,2.77798215]
[1754314887353,4.679,3600.4,3600.0,2.77777777]
[1754314887580,1.1925,3600.3,3600.1,2.7776991]
[1754314887864,0.1392,3600.0,3599.5,0.6127]
[1754314888022,0.1392,3600.0,3599.6,3.24958645]
[1754314888222,0.1392,3600.0,3599.9,2.77785494]
[1754314888452,0.1392,3600.0,3599.8,2.77792264]
[1754314889172,0.1392,3600.0,3599.7,2.77797937]
[1754314889322,1.3317,3600.0,3599.5,0.1412]
[1754314889524,1.1925,3599.9,3599.5,0.002]
[1754314889717,3.46728645,3599.6,3599.5,0.002]
[1754314889935,3.50201253,3599.6,3599.5,0.002]
[1754314890173,5.04131253,3599.6,3599.5,0.002]
[1754314890662,8.04131253,3599.6,3599.5,1e-08]
[1754314890823,38.00658645,3599.6,3599.5,1e-08]
[1754314891025,39.67858645,3599.6,3599.5,1e-08]
[1754314891238,44.21838645,3599.6,3599.5,1e-08]
[1754314892235,0.55,3597.6,3596.5,0.4341]
[1754314892435,0.55,3597.4,3596.2,2.78065116]
[1754314892676,0.55,3597.2,3596.0,0.002]
[1754314892976,0.55,3596.7,3596.0,0.002]
[1754314893182,4.679,3596.6,3596.0,0.002]
[1754314893457,8.67051529,3596.6,3596.0,0.002]
[1754314893646,5.8901,3596.6,3596.0,0.002]
[1754314893845,0.55,3596.4,3596.0,0.002]
[1754314894034,2.78070701,3596.3,3596.0,0.002]
[1754314894358,1.2111,3596.5,3596.0,0.002]
[1754314894359,0.03475601,3596.5,3596.1,0.4341]
[1754314894574,3.32988058,3597.3,3596.5,2.78046647]
[1754314894776,1.2111,3597.2,3596.2,0.4341]
[1754314895068,1.2111,3597.2,3596.5,2.78047852]
[1754314895373,1.2111,3597.7,3596.5,0.4341]
[1754314895727,4.68,3597.6,3596.9,2.78012227]
[1754314895921,4.68,3597.6,3597.0,2.78007824]
[1754314896325,4.68,3597.6,3596.5,0.4341]
[1754314896326,1.7611,3597.5,3596.5,0.4341]
[1754314896573,1.2111,3597.4,3595.9,5.8938]
[1754314896736,6.673,3598.4,3595.9,5.8938]
[1754314896737,1.2111,3597.8,3596.4,0.4341]
[1754314897069,4.681,3598.1,3597.4,2.77972592]
[1754314897281,4.681,3598.1,3596.9,0.4341]
[1754314897482,1.2111,3598.0,3596.9,0.4341]
[1754314897662,0.03474248,3597.9,3596.0,0.002]
[1754314897843,2.78031322,3596.8,3596.0,2.78285439]
[1754314898041,5.8921,3596.8,3596.1,2.78077267]
[1754314898263,8.67235403,3596.8,3596.1,2.78077267]
[1754314898564,0.03475408,3596.7,3596.0,0.002]
[1754314898725,0.55,3596.5,3596.0,0.002]
[1754314899064,1.2111,3596.4,3596.0,0.002]
[1754314899232,4.682,3596.5,3596.0,2.78280225]
[1754314899561,4.682,3596.5,3596.1,2.78075463]
[1754314899776,0.55,3597.0,3596.2,0.4341]
[1754314899978,4.681,3596.6,3596.0,2.78281015]
[1754314900183,4.681,3596.6,3596.2,2.78070121]
[1754314900387,1.2111,3597.0,3596.0,0.002]
[1754314900557,4.45085569,3598.7,3596.0,0.002]
[1754314900558,5.8921,3597.5,3596.3,0.4341]
[1754314900963,1.2111,3597.5,3596.3,0.4341]
[1754314901166,4.681,3597.9,3596.8,2.78022322]
[1754314901500,1.2111,3598.1,3596.9,0.5733]
[1754314901644,0.96839523,3598.5,3598.4,2.77901289]
[1754314901841,0.96839523,3598.5,3598.4,4.42691289]
[1754314902047,0.1392,3599.4,3599.3,2.778318]
[1754314902544,1.3503,3599.4,3599.3,7.0]
[1754314902751,0.1392,3599.4,3599.3,9.778318]
[1754314902985,0.1392,3599.5,3599.4,2.77823835]
[1754314903486,0.1392,3599.5,3599.2,2.77839353]
[1754314903658,0.1392,3599.3,3599.1,2.77845394]
[1754314903985,4.71572125,3600.1,3598.4,0.4341]
[1754314903986,0.1392,3599.1,3599.0,2.77854959]
[1754314904284,0.1392,3599.1,3598.0,7.46030903]
[1754314904285,0.1392,3599.1,3598.7,0.4341]
[1754314904487,0.03473186,3599.0,3598.6,2.77880393]
[1754314904786,0.55,3599.6,3598.8,2.77864185]
[1754314904954,0.1392,3598.9,3598.8,2.77870401]
[1754314905353,1.2111,3599.5,3599.1,2.7784355]
[1754314905550,1.2111,3599.5,3599.0,2.77852436]
[1754314905859,1.2111,3599.4,3599.0,2.77852436]
[1754314906066,0.1392,3599.1,3598.5,2.77893566]
[1754314906266,1.2111,3599.3,3598.6,2.77885844]
[1754314906477,1.2111,3599.2,3598.2,0.4341]
[1754314906677,0.1392,3598.7,3598.6,2.77885844]
[1754314906853,0.1392,3598.7,3598.6,3.21295844]
[1754314907054,1.2111,3599.6,3598.6,4.56595844]
[1754314907278,1.2111,3599.5,3598.8,2.7786831]
[1754314907575,1.2111,3599.5,3598.9,2.7786229]
[1754314907807,1.2111,3599.5,3598.8,2.77868924]
[1754314908007,3.98927724,3599.5,3598.7,2.77875591]
[1754314908209,3.32839213,3599.3,3598.5,2.77893099]
[1754314908504,1.2111,3599.4,3598.2,0.4341]
[1754314908505,1.2111,3599.4,3598.8,2.77863365]
[1754314908715,1.2111,3599.4,3598.9,2.77860023]
[1754314908909,0.55,3599.6,3598.9,0.4341]
[1754314909227,3.32808809,3599.6,3598.9,3.21270602]
[1754314909389,3.32808809,3599.6,3598.9,2.77860602]
[1754314909591,3.32808809,3599.6,3598.5,0.4341]
[1754314909592,3.32802376,3599.7,3599.0,2.77849968]
[1754314909778,3.32802376,3599.7,3598.5,0.4341]
[1754314909981,3.32802376,3599.7,3598.9,2.77857111]
[1754314910176,2.77809695,3599.6,3598.5,0.4341]
[1754314910376,2.77829866,3599.4,3598.7,2.77873131]
[1754314910702,3.98948444,3599.3,3598.5,2.77887656]
[1754314911211,0.55,3599.5,3598.5,0.4341]
[1754314911507,1.2111,3599.4,3598.7,2.77875395]
[1754314911706,3.98936155,3599.4,3598.8,2.77870124]
[1754314912022,2.77803331,3599.7,3599.0,2.77849646]
[1754314912403,3.32803576,3599.7,3599.0,2.77849646]
[1754314912711,3.32795162,3599.8,3598.9,2.77861713]
[1754314912913,2.77808672,3599.6,3599.0,2.7785457]
[1754314913116,4.53909776,3599.8,3599.1,2.77844666]
[1754314913320,6.4401,3599.8,3598.9,0.4341]
[1754314913612,9.21803986,3599.8,3599.2,2.77839017]
[1754314913814,1.7611,3599.8,3598.9,0.4341]
[1754314914120,6.4401,3599.8,3598.9,0.4341]
[1754314914311,1.2111,3599.7,3598.5,0.4341]
[1754314914512,2.77835917,3599.3,3598.6,2.77878973]
[1754314914719,2.77841314,3599.2,3598.5,3.21301314]
[1754314914924,2.77852098,3599.1,3598.5,3.21302205]
[1754314915421,2.7784175,3599.2,3598.6,2.77885194]
[1754314915630,3.98944334,3599.3,3598.5,0.4341]
[1754314915812,2.7782692,3599.4,3598.7,2.77877091]
[1754314916122,2.77832092,3599.3,3598.7,2.77877091]
[1754314916324,2.77841829,3599.2,3598.6,2.77885416]
[1754314916526,2.77845624,3599.2,3598.5,2.7788792]
[1754314916739,2.77845624,3599.2,3598.6,2.77882845]
[1754314916921,2.77835037,3599.3,3598.6,2.77882845]
[1754314917230,1.2111,3599.5,3598.5,2.77892601]
[1754314917535,0.1392,3598.8,3598.4,0.4341]
[1754314918144,0.1392,3598.5,3598.0,0.4341]
[1754314918347,0.1392,3598.5,3598.1,0.4341]
[1754314918627,0.1392,3598.5,3598.2,2.77911656]
[1754314918924,0.1392,3598.6,3598.5,2.77890936]
[1754314919115,0.1392,3598.8,3598.6,2.77880481]
[1754314919290,0.1392,3598.8,3598.6,3.21290481]
[1754314919490,0.1392,3598.8,3598.4,2.77897974]
[1754314919726,0.1392,3598.8,3598.5,2.77892347]
[1754314920026,0.1392,3598.8,3598.4,3.21308376]
[1754314920224,0.1392,3598.8,3598.2,0.1392]
[1754314920443,0.1392,3598.8,3597.9,1.2138]
[1754314920444,0.1392,3598.5,3598.1,2.77922155]
[1754314920593,0.1392,3598.5,3598.0,0.1392]
[1754314920799,0.03473766,3598.4,3598.0,2.77932184]
[1754314920997,1.24583766,3598.4,3598.0,2.77932184]
[1754314921201,1.2539,3598.3,3597.6,3.21372536]
[1754314921426,0.1392,3598.1,3597.9,2.77939408]
[1754314921628,0.1392,3598.1,3597.8,2.77946633]
[1754314921844,1.2539,3598.3,3597.4,5.8908]
[1754314921990,0.55,3598.7,3598.0,2.77931686]
[1754314922240,3.32881766,3598.7,3597.8,3.25264893]
[1754314922446,2.77914336,3598.3,3597.7,2.77955065]
[1754314922802,1.2539,3598.2,3597.4,2.91897466]
[1754314923086,0.1392,3597.8,3597.5,0.4732]
[1754314923298,0.1392,3597.8,3597.6,0.4732]
[1754314923711,0.1392,3597.8,3597.2,5.1502]
[1754314923999,0.1392,3597.8,3597.7,2.7795536]
[1754314924390,0.1392,3597.8,3597.0,3.94785696]
[1754314924391,3.32956544,3597.7,3596.8,2.7801782]
[1754314924558,2.7798564,3597.4,3596.7,2.7802973]
[1754314924758,2.7799944,3597.2,3596.5,0.4732]
[1754314924958,0.03475021,3597.1,3596.3,4.677]
[1754314925181,1.2539,3597.0,3596.4,2.7805088]
[1754314925368,1.2539,3597.0,3596.5,2.7804654]
[1754314925567,4.03401132,3597.0,3596.3,4.677]
[1754314925779,1.2539,3597.0,3596.3,4.677]
[1754314925998,0.55,3597.2,3596.5,2.78041741]
[1754314926396,0.55,3597.3,3596.3,0.4732]
[1754314926727,4.03393682,3597.1,3596.3,0.4732]
[1754314926875,4.03393682,3597.1,3596.5,2.78048029]
[1754314927076,4.03393682,3597.1,3596.3,3.25382789]
[1754314927301,4.03393682,3597.1,3596.4,2.78055833]
[1754314927470,2.78010912,3597.0,3596.4,2.78055833]
[1754314927803,2.78010718,3597.0,3596.4,2.78055833]
[1754314928010,1.2539,3597.1,3596.3,2.78060608]
[1754314928209,2.78009452,3597.0,3596.3,2.78060608]
[1754314928371,2.78019025,3596.9,3596.3,2.78060608]
[1754314928572,4.03398103,3597.1,3596.4,2.78054637]
[1754314928801,2.78012072,3597.0,3596.4,2.78054637]
[1754314929109,2.78014342,3597.0,3596.3,2.78061128]
[1754314929283,2.78014342,3597.0,3596.1,7.45978911]
[1754314929284,1.2539,3596.9,3596.1,0.002]
[1754314929485,2.81502091,3596.8,3596.2,2.78066102]
[1754314929753,2.78034137,3596.7,3596.1,2.78277725]
[1754314930009,0.03474924,3597.2,3596.1,0.002]
[1754314930314,1.2539,3596.6,3596.1,2.78276872]
[1754314930471,4.677,3597.1,3596.1,0.4752]
[1754314930666,0.55,3596.3,3596.1,0.002]
[1754314930918,3.33071297,3596.2,3596.1,0.002]
[1754314931075,4.58461297,3596.2,3596.1,0.002]
[1754314932813,4.93141297,3596.2,3596.1,0.002]
[1754314933012,4.58461297,3596.2,3596.1,0.002]
[1754314933525,0.03475794,3596.3,3596.1,0.002]
[1754314933824,0.1,3598.7,3596.1,0.002]
[1754314933825,4.03376345,3597.3,3596.1,1.643]
[1754314934024,1.2539,3597.3,3596.2,0.4732]
[1754314934321,4.677,3597.4,3596.4,2.78054936]
[1754314934322,2.78014673,3597.0,3596.4,2.78054936]
[1754314934909,2.78004144,3597.1,3596.5,2.78047982]
[1754314935118,4.0338862,3597.2,3596.6,2.78037772]
[1754314935293,1.2539,3597.9,3596.2,0.1392]
[1754314935494,0.1392,3597.1,3596.8,2.78021867]
[1754314935723,1.2539,3597.5,3596.3,5.8438]
[1754314935919,0.1392,3596.7,3596.6,2.78034667]
[1754314936230,0.1392,3596.5,3596.1,2.78276102]
[1754314936393,0.1392,3596.5,3596.2,2.78066621]
[1754314936593,0.1392,3596.3,3596.2,2.78066621]
[1754314936899,0.3468,3598.0,3596.8,2.78023088]
[1754314937092,0.55,3597.5,3596.7,3.25351069]
[1754314937286,2.77992853,3597.3,3596.6,2.78038906]
[1754314937532,0.55,3597.5,3596.4,1.1678]
[1754314937693,0.55,3597.5,3596.5,2.78048102]
[1754314938027,4.676,3597.6,3597.1,2.78000603]
[1754314938217,4.676,3597.6,3596.9,2.78017181]
[1754314938218,0.1392,3597.2,3596.9,2.78017181]
[1754314938394,0.1392,3597.0,3596.9,2.78017181]
[1754314938591,0.1392,3597.0,3596.5,0.1392]
[1754314938792,1.2539,3596.9,3596.4,3.25375611]
[1754314938992,1.2539,3596.9,3596.5,2.78047974]
[1754314939187,1.2539,3596.9,3596.1,4.678]
[1754314939188,0.1392,3596.5,3596.1,4.678]
[1754314939513,4.676,3597.7,3596.5,0.1392]
[1754314939700,1.2539,3598.6,3596.7,2.78032641]
[1754314939906,0.1392,3597.7,3597.6,2.77963086]
[1754314940101,5.9289,3598.6,3597.6,2.77963086]
[1754314940102,0.1392,3597.9,3597.6,3.25276494]
[1754314940319,0.1392,3597.9,3597.8,2.77947634]
[1754314940832,0.1392,3597.9,3597.8,3.25267634]
[1754314941796,0.1392,3597.9,3597.3,0.4732]
[1754314942002,0.1392,3597.7,3597.6,2.77957041]
[1754314942397,0.1392,3597.7,3597.6,2.77963086]
[1754314943495,0.1392,3597.7,3597.6,3.25283086]
[1754314944007,0.55,3598.5,3598.0,2.77925204]
[1754314944196,1.2539,3598.6,3597.7,2.7795536]
[1754314944402,1.2539,3598.6,3598.1,3.25236874]
[1754314944598,1.2539,3598.6,3598.4,2.77901056]
[1754314944798,0.1392,3598.5,3598.4,2.77901056]
[1754314944999,0.1392,3598.5,3598.2,2.77915193]
[1754314945224,0.1392,3598.3,3598.2,2.77915193]
[1754314946098,1.3931,3598.3,3597.3,2.77981452]
[1754314946399,0.55,3598.1,3597.3,2.77981779]
[1754314946596,5.9269,3598.2,3597.0,5.1462]
[1754314946836,0.55,3598.1,3597.6,2.77962313]
[1754314947336,0.1392,3597.7,3597.1,0.4732]
[1754314947495,0.1392,3597.9,3597.2,1.641]
[1754314947699,0.1392,3597.9,3597.8,2.77947634]
[1754314948134,0.1392,3597.9,3597.8,3.25267634]
[1754314948721,0.1392,3597.9,3597.8,0.4732]
[1754314948922,1.3931,3597.9,3597.1,0.4732]
[1754314949123,1.3931,3597.9,3597.1,3.25321403]
[1754314949351,0.1392,3597.4,3597.1,3.25321403]
[1754314949555,4.672,3598.3,3597.2,1.641]
[1754314949852,0.1392,3597.9,3597.5,2.77964491]
[1754314950018,0.1392,3597.9,3597.6,0.4732]
[1754314950220,0.1392,3597.9,3597.7,0.4732]
[1754314950615,0.1392,3597.9,3597.8,3.25267634]
[1754314950822,2.77895275,3598.5,3597.8,3.25267634]
[1754314950823,2.77893776,3598.5,3597.8,3.25267634]
[1754314951020,4.672,3598.7,3597.8,3.25267634]
[1754314951021,0.1392,3598.1,3597.9,2.77939777]
[1754314951221,0.1392,3598.1,3597.9,0.4712]
[1754314951526,0.1392,3598.1,3597.9,2.77939159]
[1754314951831,0.1392,3598.1,3597.7,2.77953988]
[1754314952159,0.1392,3597.9,3597.7,0.4712]
[1754314952458,0.1392,3597.9,3597.8,3.25067634]
[1754314952952,1.1271,3598.5,3597.9,2.77932642]
[1754314953155,0.1392,3598.1,3598.0,2.77932184]
[1754314953535,0.1392,3598.1,3598.0,3.25052184]
[1754314954229,0.1392,3598.1,3597.9,2.77936926]
[1754314954434,0.1392,3598.1,3598.0,3.25052184]
[1754314956265,0.1392,3598.6,3598.0,6.4843]
[1754314956421,0.001,3599.1,3598.7,2.77876255]
[1754314956822,0.1392,3598.8,3598.7,2.77876255]
[1754314957060,0.1392,3598.8,3598.7,3.24996255]
[1754314957857,0.1392,3598.8,3598.7,2.77876255]
[1754314960159,0.001,3599.1,3599.0,2.77854959]
[1754314960728,0.001,3599.1,3599.0,3.24974959]
[1754314962270,0.001,3599.1,3599.0,4.45364959]
[1754314962561,0.001,3599.1,3599.0,3.24974959]
[1754314963974,0.001,3599.1,3599.0,4.45364959]
[1754314964637,0.001,3599.1,3599.0,24.58812091]
[1754314964956,1e-08,3599.1,3599.0,24.58812091]
[1754314965732,1e-08,3599.5,3599.4,2.77824081]
[1754314965932,1e-08,3599.5,3599.4,10.44324081]
[1754314966136,1e-08,3599.5,3599.4,12.25754081]
[1754314966367,1e-08,3599.5,3599.4,7.59254081]
[1754314966572,1e-08,3599.5,3599.4,12.25654081]
[1754314966870,1.1271,3601.2,3601.1,2.77692927]
[1754314967042,1.2663,3601.2,3601.1,2.77692927]
[1754314967422,0.1392,3601.2,3601.1,2.77692927]
[1754314967870,0.001,3601.7,3601.6,2.77654375]
[1754314968036,0.001,3601.7,3601.6,7.43954375]
[1754314968635,1.1281,3601.7,3600.5,1.2039]
[1754314968841,1.4749,3601.7,3600.4,2.77739716]
[1754314969148,1.1271,3601.6,3600.5,5.1332]
[1754314969683,1.1271,3601.6,3601.3,2.77676949]
[1754314969881,1.1271,3601.6,3601.4,2.77667906]
[1754314970087,0.001,3601.7,3601.6,2.77654375]
[1754314970245,0.001,3601.7,3601.3,4.662]
[1754314970246,1.1271,3601.6,3601.3,4.662]
[1754314970442,1.1271,3601.6,3601.4,2.77668131]
[1754314970780,1.1271,3601.5,3600.6,0.4712]
[1754314970994,0.001,3601.7,3601.6,2.77654375]
[1754314971194,0.001,3601.7,3601.6,7.43654375]
[1754314971403,0.001,3601.7,3601.6,4.66]
[1754314971777,0.001,3601.7,3601.6,7.43654375]
[1754314972714,1e-08,3601.7,3601.6,7.43654375]
[1754314972857,1.0,3602.0,3601.9,2.7763125]
[1754314973410,1.0,3602.0,3601.9,7.9075125]
[1754314973693,1.0,3602.0,3601.9,4.4514125]
[1754314973898,1.0,3602.0,3601.9,3.2475125]
[1754314974259,1.0,3602.0,3601.9,2.7763125]
[1754314974462,1.0,3602.0,3601.9,7.4353125]
[1754314974660,1.0,3602.0,3601.9,9.1104125]
[1754314975056,1.0,3602.0,3601.9,4.4514125]
[1754314975264,1.0,3602.0,3601.9,2.7763125]
[1754314975478,1.0,3602.0,3601.9,7.9055125]
[1754314975700,1.0,3602.0,3601.9,9.1094125]
[1754314976762,1.0,3602.0,3601.9,9.1084125]
[1754314977692,1.0,3602.0,3601.9,3.3867125]
[1754314977898,1.0,3602.0,3601.9,2.9155125]
[1754314978094,1.0,3602.0,3601.9,7.5715125]
[1754314978466,1.0,3602.0,3601.9,2.9155125]
[1754314978667,1.0,3602.0,3601.9,7.5715125]
[1754314978888,1.0,3602.0,3601.9,2.9155125]
[1754314979269,1.0,3602.0,3601.9,7.5705125]
[1754314979479,1.0,3602.0,3601.9,9.9155125]
[1754314979679,2.1271,3602.0,3601.9,11.655]
[1754314980221,2.1271,3602.0,3601.9,7.0]
[1754314980403,5.25013542,3602.0,3601.2,2.77684504]
[1754314980611,1.0,3602.0,3601.3,5.1252]
[1754314980928,1.0,3602.0,3601.9,2.7763125]
[1754314981221,1.0,3602.0,3601.9,7.8591125]
[1754314981816,1.0,3602.0,3601.9,9.0478125]
[1754314982012,1.0,3602.0,3601.9,7.4303125]
[1754314982195,2.1336,3602.0,3601.9,4.654]
[1754314982382,2.1336,3602.0,3601.9,7.0]
[1754314982573,2.1336,3602.0,3601.9,14.4303125]
[1754314982574,1.0,3602.0,3601.9,14.4303125]
[1754314982997,2.1336,3602.0,3601.9,11.654]
[1754314983194,2.1336,3602.0,3601.9,14.4303125]
[1754314983510,1.0,3602.0,3601.9,14.4303125]
[1754314983705,1.0,3602.0,3601.9,14.8581125]
[1754314984071,1.0,3602.0,3601.9,7.0]
[1754314984299,2.1336,3602.0,3601.9,7.0]
[1754314984496,2.1336,3602.0,3601.9,11.653]
[1754314984707,1.0,3602.0,3601.9,14.4293125]
[1754314984908,1.0,3602.0,3601.9,14.8581125]
[1754314985677,1.0,3602.0,3601.9,17.8581125]
[1754314985981,1.0,3602.0,3601.9,12.7763125]
[1754314986184,2.1336,3602.0,3601.9,7.0]
[1754314986580,5.25413542,3602.0,3601.9,7.0]
[1754314986780,5.80413542,3602.0,3601.9,7.0]
[1754314987197,5.25413542,3602.0,3601.9,7.0]
[1754314987423,5.80413542,3602.0,3601.9,7.0]
[1754314988097,5.80413542,3602.0,3599.1,0.834224]
[1754314988098,0.55,3600.8,3599.3,0.4288]
[1754314988300,1.4779,3600.7,3599.5,2.7781022]
[1754314988538,0.55,3600.5,3598.8,0.4288]
[1754314988837,31.51261836,3600.4,3598.9,4.651]
[1754314989015,1.1336,3600.4,3599.7,2.77793952]
[1754314989195,1.1336,3600.4,3599.8,4.651]
[1754314989583,0.1392,3599.9,3599.3,0.1392]
[1754314989785,1.1336,3600.4,3599.0,0.4288]
[1754314989786,0.1392,3600.1,3599.8,2.7779321]
[1754314990049,0.1392,3600.6,3599.9,5.0808]
[1754314990221,1.2728,3601.0,3600.0,7.56897777]
[1754314990426,0.1392,3600.8,3600.3,0.1392]
[1754314990588,0.1392,3600.6,3600.5,2.77737972]
[1754314990787,1.1336,3600.8,3600.7,2.77723775]
[1754314991126,1.1336,3600.8,3600.5,7.42937972]
[1754314991127,1.2728,3600.8,3600.5,4.652]
[1754314991328,1.2728,3600.8,3600.6,2.7772461]
[1754314991810,1.1336,3600.7,3599.9,0.4288]
[1754314992122,0.1392,3600.6,3600.3,2.77746966]
[1754314992328,0.18088624,3602.8,3600.4,14.24753878]
[1754314992510,0.18088624,3602.8,3600.9,1.2728]
[1754314992710,0.18088624,3602.8,3601.0,4.65838642]
[1754314992912,0.18088624,3602.8,3600.5,7.503865]
[1754314992913,1.1336,3602.6,3602.0,2.77623542]
[1754314993240,0.18088624,3602.8,3602.0,2.77623542]
[1754314993440,3.05914622,3602.4,3602.0,2.77623542]
[1754314993800,1.92554622,3602.4,3602.0,3.20503542]
[1754314994006,1.92554622,3602.4,3602.0,7.87103542]
[1754314994438,0.03470005,3602.3,3602.0,2.77623542]
[1754314994703,1.1346,3602.1,3602.0,7.44223542]
[1754314994923,0.001,3602.1,3602.0,7.44223542]
[1754314995131,0.001,3602.1,3602.0,7.87103542]
[1754314995651,1e-08,3602.1,3602.0,15.63783542]
[1754314996003,1e-08,3602.1,3602.0,15.63683542]
[1754314996200,1e-08,3602.4,3602.3,2.77600421]
[1754314996448,1e-08,3602.4,3602.3,8.64097346]
[1754314996612,1e-08,3602.4,3602.3,3.97260421]
[1754314996812,1e-08,3602.4,3602.3,8.63360421]
[1754314997015,1e-08,3602.4,3602.3,7.43700421]
[1754314997245,1e-08,3602.4,3602.3,3.97260421]
[1754314997586,1e-08,3602.4,3602.3,3.41178309]
[1754314997746,1e-08,3602.4,3602.3,8.84158309]
[1754314998717,1e-08,3602.4,3602.3,8.83858309]
[1754314999347,0.06,3604.1,3602.5,2.77580248]
[1754314999550,0.06,3604.1,3603.7,2.77490741]
[1754314999762,0.06,3604.1,3602.9,2.77552138]
[1754314999763,0.06,3604.1,3603.8,4.657]
[1754314999920,0.06,3604.1,3604.0,2.77469478]
[1754315000951,0.06,3604.1,3604.0,3.20349478]
[1754315001118,0.06,3604.1,3603.9,7.42975676]
[1754315001633,0.06,3604.1,3604.0,4.652]
[1754315001827,0.06,3604.1,3604.0,4.651]
[1754315002138,1.1936,3604.1,3604.0,4.651]
[1754315002454,1.1936,3604.1,3604.0,4.65]
[1754315002822,1.332,3604.1,3604.0,4.65]
[1754315003017,1.332,3604.1,3603.5,0.1384]
[1754315003231,0.1384,3603.8,3603.6,4.65]
[1754315003417,1.1336,3603.7,3603.6,4.65]
[1754315003619,1.1336,3603.7,3603.1,2.77532165]
[1754315003835,1.1336,3603.7,3602.9,6.668]
[1754315003836,2.77500277,3603.6,3602.9,6.668]
[1754315004041,2.77500277,3603.6,3603.0,4.649]
[1754315004252,3.90869802,3603.5,3602.9,6.668]
[1754315004455,2.77524155,3603.3,3603.0,4.649]
[1754315004753,2.77524155,3603.3,3601.9,2.77624624]
[1754315004754,1.1336,3603.2,3603.1,4.649]
[1754315005848,1.1336,3603.2,3602.9,4.649]
[1754315006057,3.3248998,3603.8,3603.7,5.48490766]
[1754315006229,3.3248998,3603.8,3602.5,4.649]
[1754315006230,2.77548336,3603.0,3602.5,4.649]
[1754315006432,3.32500277,3603.6,3602.5,4.649]
[1754315006655,0.55,3603.2,3601.8,2.98450518]
[1754315006856,2.77593802,3602.4,3601.8,0.20811985]
[1754315007059,2.77577305,3602.6,3602.5,1.51509]
[1754315007257,3.32577305,3602.6,3602.5,1.51509]
[1754315007532,2.77577305,3602.6,3602.5,1.51509]
[1754315007740,3.0,3603.6,3602.5,7.0]
[1754315007990,2.77577305,3602.6,3602.5,7.0]
[1754315008281,1.1336,3602.6,3602.5,7.0]
[1754315008502,1.1336,3603.1,3602.5,7.0]
[1754315008696,1.1336,3603.5,3602.5,7.0]
[1754315008836,1.1936,3603.8,3602.6,0.4288]
[1754315009139,3.96846701,3603.8,3602.7,4.649]
[1754315009330,1.1936,3603.8,3602.7,4.649]
[1754315009535,1.1936,3603.8,3602.8,2.77561896]
[1754315009754,2.77506345,3603.6,3602.8,2.77561896]
[1754315009957,1.1936,3603.8,3602.5,7.0]
[1754315009958,1.1336,3603.5,3602.5,7.0]
[1754315010177,2.77539837,3603.1,3602.5,7.0]
[1754315010477,3.90909776,3603.0,3602.5,7.0]
[1754315010774,2.77577305,3602.6,3602.5,7.0]